[Event "*** Titled Tuesday Blitz"]
[Site "Chess.com"]
[Date "2020.04.14"]
[Round "7"]
[White "Alliswell998"]
[Black "kleopl"]
[Result "0-1"]
[WhiteElo "2543"]
[BlackElo "2405"]
[TimeControl "180+1"]
[EndTime "11:17:21 PDT"]
[Termination "kleopl won on time"]

1. d4 {[%clk 0:03:00.9]} 1... Nf6 {[%clk 0:02:57.8]} 2. Bg5 {[%clk 0:03:01.2]}
2... c5 {[%clk 0:02:56.5]} 3. d5 {[%clk 0:03:00.9]} 3... Qb6 {[%clk 0:02:53.6]}
4. Nc3 {[%clk 0:03:00.5]} 4... Qxb2 {[%clk 0:02:41.5]} 5. Bd2 {[%clk 0:03:00.2]}
5... Qb6 {[%clk 0:02:40]} 6. e4 {[%clk 0:03:00.3]} 6... d6 {[%clk 0:02:39.2]} 7.
f4 {[%clk 0:03:00.5]} 7... g6 {[%clk 0:02:38]} 8. Nf3 {[%clk 0:03:00.7]} 8...
Bg7 {[%clk 0:02:38]} 9. Bc4 {[%clk 0:02:54.7]} 9... O-O {[%clk 0:02:37]} 10. O-O
{[%clk 0:02:54.5]} 10... a6 {[%clk 0:02:36]} 11. a4 {[%clk 0:02:53.3]} 11... Bg4
{[%clk 0:02:31]} 12. Kh1 {[%clk 0:02:52.4]} 12... Qc7 {[%clk 0:02:30.3]} 13. Qe1
{[%clk 0:02:45]} 13... Bxf3 {[%clk 0:02:29.4]} 14. Rxf3 {[%clk 0:02:45.9]} 14...
Nbd7 {[%clk 0:02:27.5]} 15. Rb1 {[%clk 0:02:39]} 15... Rab8 {[%clk 0:02:26.6]}
16. Qh4 {[%clk 0:02:30.8]} 16... Nb6 {[%clk 0:02:21.2]} 17. Rxb6 {[%clk
0:02:25.7]} 17... Qxb6 {[%clk 0:02:19.5]} 18. e5 {[%clk 0:02:25.7]} 18... dxe5
{[%clk 0:02:15.8]} 19. fxe5 {[%clk 0:02:26.6]} 19... Nd7 {[%clk 0:02:13.4]} 20.
e6 {[%clk 0:01:46.9]} 20... fxe6 {[%clk 0:02:06.5]} 21. Rh3 {[%clk 0:01:44.9]}
21... Nf6 {[%clk 0:01:45.2]} 22. Bg5 {[%clk 0:01:15.6]} 22... h5 {[%clk
0:01:19]} 23. Bf4 {[%clk 0:01:11.7]} 23... Qb2 {[%clk 0:01:11]} 24. Qe1 {[%clk
0:01:07.6]} 24... Ng4 {[%clk 0:00:56.7]} 25. Rf3 {[%clk 0:00:52.2]} 25... Bxc3
{[%clk 0:00:50.9]} 26. Qxe6+ {[%clk 0:00:47.4]} 26... Kh8 {[%clk 0:00:29.1]} 27.
Qxg6 {[%clk 0:00:30.3]} 27... Qb1+ {[%clk 0:00:10]} 28. Rf1 {[%clk 0:00:27.4]}
28... Nf2+ {[%clk 0:00:09.2]} 29. Kg1 {[%clk 0:00:27.4]} 29... Nh3+ {[%clk
0:00:07.2]} 30. gxh3 {[%clk 0:00:22.3]} 30... Qxf1+ {[%clk 0:00:06.9]} 31. Kxf1
{[%clk 0:00:18.9]} 31... Rxf4+ {[%clk 0:00:06.5]} 32. Ke2 {[%clk 0:00:19]} 32...
Rxc4 {[%clk 0:00:06.2]} 33. Qxh5+ {[%clk 0:00:17]} 33... Kg8 {[%clk 0:00:06.2]}
34. Kd3 {[%clk 0:00:14.8]} 34... Rd4+ {[%clk 0:00:05.3]} 35. Kxc3 {[%clk
0:00:14.5]} 35... Rd8 {[%clk 0:00:05.7]} 36. Qg6+ {[%clk 0:00:14.6]} 36... Kf8
{[%clk 0:00:05.7]} 37. Qf5+ {[%clk 0:00:14.7]} 37... Kg8 {[%clk 0:00:05.3]} 38.
Qe6+ {[%clk 0:00:14.8]} 38... Kf8 {[%clk 0:00:05.5]} 39. Qh6+ {[%clk 0:00:14.5]}
39... Kg8 {[%clk 0:00:05.4]} 40. Qg5+ {[%clk 0:00:10.9]} 40... Kf8 {[%clk
0:00:05.5]} 41. Qf5+ {[%clk 0:00:11.6]} 41... Kg8 {[%clk 0:00:05.2]} 42. h4
{[%clk 0:00:11.3]} 42... R4xd5 {[%clk 0:00:04.9]} 43. Qg6+ {[%clk 0:00:10.8]}
43... Kf8 {[%clk 0:00:05.2]} 44. h5 {[%clk 0:00:11.1]} 44... R5d6 {[%clk
0:00:05.5]} 45. Qg5 {[%clk 0:00:10.1]} 45... Rf6 {[%clk 0:00:04.3]} 46. h6
{[%clk 0:00:09.8]} 46... Kf7 {[%clk 0:00:04.3]} 47. Qg7+ {[%clk 0:00:09.5]}
47... Ke6 {[%clk 0:00:04.4]} 48. h7 {[%clk 0:00:10.4]} 48... Rff8 {[%clk
0:00:04.1]} 49. h4 {[%clk 0:00:10.1]} 49... Rf3+ {[%clk 0:00:02.5]} 50. Kb2
{[%clk 0:00:09.8]} 50... Rff8 {[%clk 0:00:03.4]} 51. a5 {[%clk 0:00:09.5]} 51...
Kd6 {[%clk 0:00:02.9]} 52. h5 {[%clk 0:00:09.6]} 52... e6 {[%clk 0:00:03.2]} 53.
h6 {[%clk 0:00:08.2]} 53... Kc6 {[%clk 0:00:03.3]} 54. Qg6 {[%clk 0:00:06.7]}
54... Rfe8 {[%clk 0:00:03.5]} 55. Qe4+ {[%clk 0:00:05.7]} 55... Kc7 {[%clk
0:00:03.6]} 56. Qe5+ {[%clk 0:00:06]} 56... Kc6 {[%clk 0:00:03.8]} 57. Qg7
{[%clk 0:00:06.5]} 57... Rc8 {[%clk 0:00:02.2]} 58. Ka2 {[%clk 0:00:06.7]} 58...
Rcd8 {[%clk 0:00:02.5]} 59. c4 {[%clk 0:00:07.1]} 59... Rc8 {[%clk 0:00:02.8]}
60. Kb3 {[%clk 0:00:07.4]} 60... Rcd8 {[%clk 0:00:03.1]} 61. Ka4 {[%clk
0:00:07.8]} 61... e5 {[%clk 0:00:03]} 62. Qg2+ {[%clk 0:00:07.5]} 62... Kc7
{[%clk 0:00:03.1]} 63. Qg6 {[%clk 0:00:08.4]} 63... Kb8 {[%clk 0:00:03.4]} 64.
Qg7 {[%clk 0:00:08.2]} 64... e4 {[%clk 0:00:03.8]} 65. Qg3+ {[%clk 0:00:08.7]}
65... Ka8 {[%clk 0:00:03.4]} 66. Qe3 {[%clk 0:00:09.6]} 66... Rd7 {[%clk
0:00:02.6]} 67. Qxe4 {[%clk 0:00:08.5]} 67... Rxe4 {[%clk 0:00:01.5]} 68. h8=Q+
{[%clk 0:00:08.9]} 68... Ka7 {[%clk 0:00:02.4]} 69. Qg8 {[%clk 0:00:08.8]} 69...
Ree7 {[%clk 0:00:02]} 70. Qg1 {[%clk 0:00:08]} 70... Rc7 {[%clk 0:00:02.9]} 71.
Qe3 {[%clk 0:00:07.4]} 71... Rh7 {[%clk 0:00:03.4]} 72. Qf4 {[%clk 0:00:07.3]}
72... Rhf7 {[%clk 0:00:03.5]} 73. Qg5 {[%clk 0:00:07.4]} 73... Rh7 {[%clk
0:00:03.6]} 74. Qg6 {[%clk 0:00:07.9]} 74... Rhe7 {[%clk 0:00:03]} 75. Qb6+
{[%clk 0:00:08.1]} 75... Ka8 {[%clk 0:00:01.7]} 76. Qd6 {[%clk 0:00:09]} 76...
Kb8 {[%clk 0:00:02.3]} 77. Qd8+ {[%clk 0:00:09.2]} 77... Ka7 {[%clk 0:00:03.2]}
78. Qg8 {[%clk 0:00:09]} 78... Rcd7 {[%clk 0:00:02.4]} 79. Qf8 {[%clk
0:00:09.2]} 79... Rc7 {[%clk 0:00:02.9]} 80. Qf2 {[%clk 0:00:09.6]} 80... Ka8
{[%clk 0:00:02.4]} 81. Ka3 {[%clk 0:00:09.8]} 81... Ka7 {[%clk 0:00:03.3]} 82.
Qg1 {[%clk 0:00:09.4]} 82... Red7 {[%clk 0:00:03.6]} 83. Ka4 {[%clk 0:00:08.6]}
83... Rh7 {[%clk 0:00:04.5]} 84. Qg6 {[%clk 0:00:08.4]} 84... Rhd7 {[%clk
0:00:03.3]} 85. Qb6+ {[%clk 0:00:08.4]} 85... Ka8 {[%clk 0:00:03.7]} 86. Qe6
{[%clk 0:00:08.9]} 86... Ka7 {[%clk 0:00:03]} 87. Qe5 {[%clk 0:00:09.3]} 87...
Rh7 {[%clk 0:00:02.2]} 88. Kb3 {[%clk 0:00:08.3]} 88... Rc6 {[%clk 0:00:02.4]}
89. Qe4 {[%clk 0:00:04]} 89... Rhxh6 {[%clk 0:00:03.3]} 90. Ka4 {[%clk
0:00:03.4]} 90... Rhd6 {[%clk 0:00:03.8]} 91. Qe3 {[%clk 0:00:03.4]} 91... Rd4
{[%clk 0:00:04.5]} 92. Qe2 {[%clk 0:00:03]} 92... Rcd6 {[%clk 0:00:04.4]} 93.
Qb2 {[%clk 0:00:03.2]} 93... Rc6 {[%clk 0:00:05.2]} 94. Qg2 {[%clk 0:00:02]}
94... Re6 {[%clk 0:00:04.7]} 95. Ka3 {[%clk 0:00:02.9]} 95... Ree4 {[%clk
0:00:04.9]} 96. Kb3 {[%clk 0:00:02.6]} 96... Rxc4 {[%clk 0:00:05.5]} 97. Qg7
{[%clk 0:00:03.1]} 97... Rb4+ {[%clk 0:00:06.3]} 98. Ka3 {[%clk 0:00:02.9]}
98... Rec4 {[%clk 0:00:07.1]} 99. Qg6 {[%clk 0:00:03.2]} 99... Ra4+ {[%clk
0:00:07.5]} 100. Kb3 {[%clk 0:00:03.5]} 100... Rcb4+ {[%clk 0:00:07.7]} 101. Kc2
{[%clk 0:00:04.4]} 101... Rxa5 {[%clk 0:00:08.1]} 102. Kc3 {[%clk 0:00:04.6]}
102... Rab5 {[%clk 0:00:08.7]} 103. Kc2 {[%clk 0:00:05.5]} 103... Rb2+ {[%clk
0:00:08.6]} 104. Kc1 {[%clk 0:00:06.4]} 104... Rb1+ {[%clk 0:00:08.3]} 105. Kc2
{[%clk 0:00:06.4]} 105... R1b4 {[%clk 0:00:07.7]} 106. Kc3 {[%clk 0:00:06.6]}
106... a5 {[%clk 0:00:08]} 107. Qe8 {[%clk 0:00:05.7]} 107... a4 {[%clk
0:00:07.9]} 108. Qe2 {[%clk 0:00:04.9]} 108... a3 {[%clk 0:00:08]} 109. Qa2
{[%clk 0:00:04.7]} 109... Rb3+ {[%clk 0:00:08.2]} 110. Kc4 {[%clk 0:00:04.7]}
110... b6 {[%clk 0:00:08.6]} 111. Kd5 {[%clk 0:00:05]} 111... Ka6 {[%clk
0:00:08.5]} 112. Kc6 {[%clk 0:00:05.2]} 112... R5b4 {[%clk 0:00:07.7]} 113. Qh2
{[%clk 0:00:04.1]} 113... Re3 {[%clk 0:00:06.4]} 0-1

[Event "*** Titled Tuesday Blitz"]
[Site "Chess.com"]
[Date "2020.04.14"]
[Round "8"]
[White "CHESSMASTER759"]
[Black "ChessWarrior7197"]
[Result "0-1"]
[WhiteElo "2763"]
[BlackElo "2919"]
[TimeControl "180+1"]
[EndTime "11:23:08 PDT"]
[Termination "ChessWarrior7197 won by resignation"]

1. e4 {[%clk 0:03:00.9]} 1... c5 {[%clk 0:02:59.8]} 2. Nf3 {[%clk 0:02:59]} 2...
d6 {[%clk 0:03:00.1]} 3. Nc3 {[%clk 0:02:58.4]} 3... Nf6 {[%clk 0:03:00.1]} 4.
e5 {[%clk 0:02:56.7]} 4... dxe5 {[%clk 0:03:00.3]} 5. Nxe5 {[%clk 0:02:57.6]}
5... Nbd7 {[%clk 0:02:59.8]} 6. Nc4 {[%clk 0:02:56.5]} 6... Nb6 {[%clk
0:02:59.7]} 7. Nxb6 {[%clk 0:02:55.4]} 7... Qxb6 {[%clk 0:02:59.2]} 8. Bb5+
{[%clk 0:02:56]} 8... Bd7 {[%clk 0:02:57.6]} 9. Bxd7+ {[%clk 0:02:56.3]} 9...
Nxd7 {[%clk 0:02:58.5]} 10. O-O {[%clk 0:02:56.7]} 10... e6 {[%clk 0:02:57.2]}
11. d3 {[%clk 0:02:56.7]} 0-1

[Event "*** Titled Tuesday Blitz"]
[Site "Chess.com"]
[Date "2020.04.14"]
[Round "8"]
[White "ElHelvetico"]
[Black "Jenia84"]
[Result "1-0"]
[WhiteElo "2622"]
[BlackElo "2359"]
[TimeControl "180+1"]
[EndTime "11:24:25 PDT"]
[Termination "ElHelvetico won by resignation"]

1. e4 {[%clk 0:03:00.9]} 1... e5 {[%clk 0:02:58.5]} 2. f4 {[%clk 0:02:59.1]}
2... d5 {[%clk 0:02:55.9]} 3. exd5 {[%clk 0:02:58.7]} 3... Qxd5 {[%clk
0:02:55.4]} 4. Nc3 {[%clk 0:02:56]} 4... Qe6 {[%clk 0:02:50.1]} 5. fxe5 {[%clk
0:02:53.3]} 5... Qxe5+ {[%clk 0:02:49.2]} 6. Be2 {[%clk 0:02:51.6]} 6... Nc6
{[%clk 0:02:48.2]} 7. Nf3 {[%clk 0:02:52.1]} 7... Qh5 {[%clk 0:02:43.4]} 8. O-O
{[%clk 0:02:49.1]} 8... Bd6 {[%clk 0:02:40.7]} 9. Nb5 {[%clk 0:02:36.4]} 9...
Bf4 {[%clk 0:02:27.5]} 10. d4 {[%clk 0:02:33.8]} 10... Bxc1 {[%clk 0:02:20.5]}
11. Rxc1 {[%clk 0:02:33.3]} 11... Kd8 {[%clk 0:02:16.1]} 12. Ne5 {[%clk
0:02:30.3]} 1-0

[Event "*** Titled Tuesday Blitz"]
[Site "Chess.com"]
[Date "2020.04.14"]
[Round "8"]
[White "garicradomir"]
[Black "enriquetejedor"]
[Result "1/2-1/2"]
[WhiteElo "2410"]
[BlackElo "2556"]
[TimeControl "180+1"]
[EndTime "11:24:43 PDT"]
[Termination "Game drawn by agreement"]

1. e4 {[%clk 0:03:00.9]} 1... d5 {[%clk 0:02:53]} 2. exd5 {[%clk 0:03:00.1]}
2... Qxd5 {[%clk 0:02:51.1]} 3. Nc3 {[%clk 0:03:00.3]} 3... Qd6 {[%clk 0:02:51]}
4. d4 {[%clk 0:02:58.7]} 4... Nf6 {[%clk 0:02:46.7]} 5. Nf3 {[%clk 0:02:56.9]}
5... a6 {[%clk 0:02:32.2]} 6. g3 {[%clk 0:02:56.6]} 6... Bg4 {[%clk 0:02:27.8]}
7. Bg2 {[%clk 0:02:56.6]} 7... Nc6 {[%clk 0:02:23.6]} 8. O-O {[%clk 0:02:42.7]}
8... O-O-O {[%clk 0:02:20.6]} 9. h3 {[%clk 0:02:38.4]} 9... Bxf3 {[%clk
0:02:16.2]} 10. Qxf3 {[%clk 0:02:38]} 10... Qxd4 {[%clk 0:02:15.1]} 11. Be3
{[%clk 0:02:31.6]} 11... Qb4 {[%clk 0:02:11.3]} 1/2-1/2

[Event "*** Titled Tuesday Blitz"]
[Site "Chess.com"]
[Date "2020.04.14"]
[Round "8"]
[White "UmutErdemGunduz"]
[Black "Noukii"]
[Result "1-0"]
[WhiteElo "2380"]
[BlackElo "2661"]
[TimeControl "180+1"]
[EndTime "11:24:46 PDT"]
[Termination "UmutErdemGunduz won by resignation"]

1. Nf3 {[%clk 0:03:00.9]} 1... b6 {[%clk 0:02:57.3]} 2. c4 {[%clk 0:02:59.7]}
2... Bb7 {[%clk 0:02:57.6]} 3. b3 {[%clk 0:02:56.6]} 3... Bxf3 {[%clk
0:02:52.8]} 4. exf3 {[%clk 0:02:50.6]} 4... c5 {[%clk 0:02:53]} 5. d4 {[%clk
0:02:46.8]} 5... cxd4 {[%clk 0:02:52.4]} 6. Qxd4 {[%clk 0:02:46.6]} 6... Nc6
{[%clk 0:02:53.1]} 7. Qd2 {[%clk 0:02:46.3]} 7... Nf6 {[%clk 0:02:42.5]} 8. Bb2
{[%clk 0:02:36.2]} 8... e6 {[%clk 0:02:41.5]} 9. Nc3 {[%clk 0:02:35.8]} 9... Be7
{[%clk 0:02:39.1]} 10. g3 {[%clk 0:02:33.7]} 10... O-O {[%clk 0:02:38.7]} 11.
Bg2 {[%clk 0:02:34.3]} 11... d6 {[%clk 0:02:29]} 12. f4 {[%clk 0:02:30.6]} 12...
Qd7 {[%clk 0:02:26.5]} 13. O-O {[%clk 0:02:30.1]} 13... Rad8 {[%clk 0:02:25.8]}
14. Rad1 {[%clk 0:02:28.9]} 14... a6 {[%clk 0:02:22.6]} 15. Rfe1 {[%clk
0:02:27.4]} 15... Qc7 {[%clk 0:02:16]} 16. f5 {[%clk 0:02:20.5]} 16... exf5
{[%clk 0:02:14.3]} 17. Bxc6 {[%clk 0:02:18]} 17... Qxc6 {[%clk 0:02:13.2]} 18.
Rxe7 {[%clk 0:02:17.7]} 1-0

[Event "*** Titled Tuesday Blitz"]
[Site "Chess.com"]
[Date "2020.04.14"]
[Round "8"]
[White "Khamrakulov_Djurabek"]
[Black "NewBornNow"]
[Result "1-0"]
[WhiteElo "2898"]
[BlackElo "2670"]
[TimeControl "180+1"]
[EndTime "11:24:48 PDT"]
[Termination "Khamrakulov_Djurabek won by resignation"]

1. e4 {[%clk 0:03:00.9]} 1... d6 {[%clk 0:02:58.7]} 2. d4 {[%clk 0:03:00.7]}
2... Nf6 {[%clk 0:02:58.7]} 3. Nc3 {[%clk 0:03:01.2]} 3... e5 {[%clk 0:02:58.9]}
4. Nf3 {[%clk 0:03:00.5]} 4... Nbd7 {[%clk 0:02:58.9]} 5. Rg1 {[%clk 0:03:00.9]}
5... g6 {[%clk 0:02:52.5]} 6. g4 {[%clk 0:03:00.6]} 6... Bg7 {[%clk 0:02:52.5]}
7. g5 {[%clk 0:02:59.5]} 7... Nh5 {[%clk 0:02:52.1]} 8. Be3 {[%clk 0:02:59.9]}
8... O-O {[%clk 0:02:51.6]} 9. Qd2 {[%clk 0:03:00.2]} 9... c6 {[%clk 0:02:48.1]}
10. O-O-O {[%clk 0:02:58.1]} 10... b5 {[%clk 0:02:48.1]} 11. dxe5 {[%clk
0:02:49.6]} 11... dxe5 {[%clk 0:02:42.3]} 12. Qd6 {[%clk 0:02:49.2]} 12... b4
{[%clk 0:02:20.2]} 13. Qxb4 {[%clk 0:02:43.9]} 13... Re8 {[%clk 0:02:18.7]} 14.
Bh3 {[%clk 0:02:38.9]} 14... Nf4 {[%clk 0:02:08.9]} 15. Bxd7 {[%clk 0:02:37.1]}
15... Bxd7 {[%clk 0:02:07.9]} 16. Qb7 {[%clk 0:02:35.8]} 1-0

[Event "*** Titled Tuesday Blitz"]
[Site "Chess.com"]
[Date "2020.04.14"]
[Round "8"]
[White "poliplaza"]
[Black "IvanRadivojevic"]
[Result "1/2-1/2"]
[WhiteElo "2391"]
[BlackElo "2516"]
[TimeControl "180+1"]
[EndTime "11:25:37 PDT"]
[Termination "Game drawn by agreement"]

1. d4 {[%clk 0:03:00.4]} 1... Nf6 {[%clk 0:02:59.7]} 2. c4 {[%clk 0:03:00.6]}
2... e6 {[%clk 0:03:00]} 3. Nc3 {[%clk 0:03:01.1]} 3... Bb4 {[%clk 0:03:00.4]}
4. Bd2 {[%clk 0:03:01.1]} 4... c5 {[%clk 0:02:59.3]} 5. e3 {[%clk 0:02:59.3]}
5... cxd4 {[%clk 0:02:59.3]} 6. exd4 {[%clk 0:03:00.2]} 6... d5 {[%clk
0:02:59.7]} 7. Nf3 {[%clk 0:03:00.3]} 7... Nc6 {[%clk 0:02:58.5]} 8. a3 {[%clk
0:02:59]} 8... Bxc3 {[%clk 0:02:53.7]} 9. Bxc3 {[%clk 0:02:59.9]} 9... O-O
{[%clk 0:02:53.3]} 10. Bd3 {[%clk 0:02:55.3]} 10... dxc4 {[%clk 0:02:53]} 11.
Bxc4 {[%clk 0:02:56.2]} 11... b6 {[%clk 0:02:53.7]} 12. O-O {[%clk 0:02:55.3]}
12... Bb7 {[%clk 0:02:53.6]} 13. Ne5 {[%clk 0:02:51.9]} 13... Rc8 {[%clk
0:02:51.3]} 14. Rc1 {[%clk 0:02:41.7]} 14... Nxe5 {[%clk 0:02:42.2]} 15. dxe5
{[%clk 0:02:41.7]} 15... Rxc4 {[%clk 0:02:40.3]} 16. exf6 {[%clk 0:02:40.2]}
16... gxf6 {[%clk 0:02:18.3]} 17. Bxf6 {[%clk 0:02:00.9]} 17... Qxd1 {[%clk
0:02:11.8]} 18. Rfxd1 {[%clk 0:01:59.2]} 18... Rxc1 {[%clk 0:02:00.2]} 19. Rxc1
{[%clk 0:02:00.1]} 19... Rc8 {[%clk 0:01:55.9]} 20. Rxc8+ {[%clk 0:01:59]} 20...
Bxc8 {[%clk 0:01:56.8]} 1/2-1/2

[Event "*** Titled Tuesday Blitz"]
[Site "Chess.com"]
[Date "2020.04.14"]
[Round "8"]
[White "BaMBoMaTTo"]
[Black "Fighter008"]
[Result "1-0"]
[WhiteElo "2719"]
[BlackElo "2541"]
[TimeControl "180+1"]
[EndTime "11:25:44 PDT"]
[Termination "BaMBoMaTTo won by resignation"]

1. d4 {[%clk 0:03:00.6]} 1... Nf6 {[%clk 0:02:59]} 2. c4 {[%clk 0:03:00.9]} 2...
g6 {[%clk 0:02:58.9]} 3. Nc3 {[%clk 0:03:01.2]} 3... Bg7 {[%clk 0:02:58.6]} 4.
e4 {[%clk 0:03:01.4]} 4... d6 {[%clk 0:02:58.7]} 5. Nf3 {[%clk 0:03:01.6]} 5...
O-O {[%clk 0:02:58.7]} 6. Be2 {[%clk 0:03:01.3]} 6... Nbd7 {[%clk 0:02:58.3]} 7.
O-O {[%clk 0:03:00.8]} 7... e5 {[%clk 0:02:58.4]} 8. Be3 {[%clk 0:02:58.2]} 8...
Ng4 {[%clk 0:02:57.8]} 9. Bg5 {[%clk 0:02:53.3]} 9... f6 {[%clk 0:02:57.6]} 10.
Bh4 {[%clk 0:02:53.5]} 10... h5 {[%clk 0:02:57.5]} 11. h3 {[%clk 0:02:51.8]}
11... Nh6 {[%clk 0:02:56.8]} 12. dxe5 {[%clk 0:02:51.7]} 12... dxe5 {[%clk
0:02:55.8]} 13. b4 {[%clk 0:02:38.1]} 13... c6 {[%clk 0:02:54.3]} 14. c5 {[%clk
0:02:28]} 14... g5 {[%clk 0:02:49.6]} 15. Bg3 {[%clk 0:02:27]} 15... Qe8 {[%clk
0:02:35.1]} 16. Nd2 {[%clk 0:02:13.4]} 16... h4 {[%clk 0:02:32.7]} 17. Bh2
{[%clk 0:02:13.8]} 17... b5 {[%clk 0:02:25.3]} 18. a4 {[%clk 0:02:10.6]} 18...
bxa4 {[%clk 0:02:22.8]} 19. Nc4 {[%clk 0:02:10.1]} 19... Nf7 {[%clk 0:02:22]}
20. Qxa4 {[%clk 0:02:01.7]} 20... Bb7 {[%clk 0:02:10.3]} 21. Na5 {[%clk
0:02:00]} 21... Nd8 {[%clk 0:02:04.6]} 22. Nxb7 {[%clk 0:01:55.8]} 22... Nxb7
{[%clk 0:02:04.4]} 23. Qxc6 {[%clk 0:01:56.1]} 23... Nd8 {[%clk 0:02:04.4]} 24.
Qxa8 {[%clk 0:01:55.6]} 1-0

[Event "*** Titled Tuesday Blitz"]
[Site "Chess.com"]
[Date "2020.04.14"]
[Round "8"]
[White "Quiet_Desperation"]
[Black "paradise10"]
[Result "1-0"]
[WhiteElo "1961"]
[BlackElo "2693"]
[TimeControl "180+1"]
[EndTime "11:26:00 PDT"]
[Termination "Quiet_Desperation won by checkmate"]

1. e4 {[%clk 0:03:00.9]} 1... c5 {[%clk 0:02:59.7]} 2. Nf3 {[%clk 0:03:00.9]}
2... Nc6 {[%clk 0:02:56]} 3. d4 {[%clk 0:02:59.2]} 3... cxd4 {[%clk 0:02:55.5]}
4. Nxd4 {[%clk 0:03:00.1]} 4... e5 {[%clk 0:02:55.7]} 5. Nb5 {[%clk 0:02:54.5]}
5... d6 {[%clk 0:02:53.9]} 6. N1c3 {[%clk 0:02:53.3]} 6... Nf6 {[%clk
0:02:53.5]} 7. Bg5 {[%clk 0:02:52.5]} 7... a6 {[%clk 0:02:53]} 8. Bxf6 {[%clk
0:02:52.7]} 8... gxf6 {[%clk 0:02:52.7]} 9. Na3 {[%clk 0:02:52.8]} 9... b5
{[%clk 0:02:51.5]} 10. Nd5 {[%clk 0:02:52.9]} 10... f5 {[%clk 0:02:47.6]} 11.
Bd3 {[%clk 0:02:51.5]} 11... Bg7 {[%clk 0:02:43.6]} 12. exf5 {[%clk 0:02:46.8]}
12... e4 {[%clk 0:02:25.8]} 13. Bxe4 {[%clk 0:02:44]} 13... Bxb2 {[%clk
0:02:23.5]} 14. O-O {[%clk 0:02:39.7]} 14... Bxa3 {[%clk 0:02:21.5]} 15. Re1
{[%clk 0:02:37.2]} 15... O-O {[%clk 0:02:13.7]} 16. f6 {[%clk 0:02:30.6]} 16...
Ne5 {[%clk 0:02:04.5]} 17. Bxh7+ {[%clk 0:02:01.5]} 17... Kh8 {[%clk 0:02:02.7]}
18. Qh5 {[%clk 0:01:54.1]} 18... Bg4 {[%clk 0:01:52.1]} 19. Qh6 {[%clk
0:01:39.5]} 19... Bc1 {[%clk 0:01:41.7]} 20. Qg7# {[%clk 0:01:37.6]} 1-0

[Event "*** Titled Tuesday Blitz"]
[Site "Chess.com"]
[Date "2020.04.14"]
[Round "8"]
[White "checkmatequen"]
[Black "KingCrusher275"]
[Result "1-0"]
[WhiteElo "2218"]
[BlackElo "2347"]
[TimeControl "180+1"]
[EndTime "11:26:11 PDT"]
[Termination "checkmatequen won by resignation"]

1. e4 {[%clk 0:03:00.9]} 1... c5 {[%clk 0:02:59.7]} 2. Nf3 {[%clk 0:02:56.4]}
2... e6 {[%clk 0:03:00]} 3. d4 {[%clk 0:02:55]} 3... cxd4 {[%clk 0:03:00.9]} 4.
Nxd4 {[%clk 0:02:55.8]} 4... a6 {[%clk 0:03:01.1]} 5. Bd3 {[%clk 0:02:55.3]}
5... Nf6 {[%clk 0:03:00.8]} 6. O-O {[%clk 0:02:54.8]} 6... Qc7 {[%clk
0:03:01.1]} 7. Qe2 {[%clk 0:02:52.4]} 7... d6 {[%clk 0:03:01]} 8. c4 {[%clk
0:02:51.4]} 8... g6 {[%clk 0:03:00.4]} 9. Nc3 {[%clk 0:02:47.5]} 9... Bg7 {[%clk
0:03:00.2]} 10. Rd1 {[%clk 0:02:45.1]} 10... Nbd7 {[%clk 0:02:59]} 11. Nf3
{[%clk 0:02:44.3]} 11... O-O {[%clk 0:02:57.2]} 12. Bf4 {[%clk 0:02:44.1]} 12...
b6 {[%clk 0:02:44.7]} 13. Rac1 {[%clk 0:02:36.7]} 13... Bb7 {[%clk 0:02:39.3]}
14. Bb1 {[%clk 0:02:35.6]} 14... Ne5 {[%clk 0:02:36.4]} 15. Nxe5 {[%clk
0:02:32.9]} 15... dxe5 {[%clk 0:02:36.2]} 16. Bg5 {[%clk 0:02:30.1]} 16... Nd7
{[%clk 0:02:20.4]} 17. Be7 {[%clk 0:02:23.2]} 17... Rfe8 {[%clk 0:02:17]} 18.
Bd6 {[%clk 0:02:23]} 18... Qc6 {[%clk 0:02:13.4]} 19. Bc2 {[%clk 0:02:17.3]}
19... Rac8 {[%clk 0:02:11]} 20. Ba4 {[%clk 0:02:16.2]} 20... Qxc4 {[%clk
0:01:55.8]} 21. Qxc4 {[%clk 0:02:14.2]} 21... Rxc4 {[%clk 0:01:55.8]} 22. Bxd7
{[%clk 0:02:14.2]} 22... Rd8 {[%clk 0:01:56.1]} 23. Ba4 {[%clk 0:02:11]} 23...
Rd4 {[%clk 0:01:54.9]} 24. Bc7 {[%clk 0:02:04.8]} 24... Rxd1+ {[%clk 0:01:48.6]}
25. Rxd1 {[%clk 0:02:05.7]} 25... Rxd1+ {[%clk 0:01:48]} 26. Bxd1 {[%clk
0:02:06.6]} 26... b5 {[%clk 0:01:46.3]} 27. a3 {[%clk 0:02:05.2]} 27... f5
{[%clk 0:01:46]} 28. exf5 {[%clk 0:02:04]} 28... exf5 {[%clk 0:01:45.8]} 29.
Bb3+ {[%clk 0:02:04]} 29... Kh8 {[%clk 0:01:45.4]} 30. Bd5 {[%clk 0:01:58.3]}
30... Bxd5 {[%clk 0:01:44.5]} 31. Nxd5 {[%clk 0:01:59.2]} 31... e4 {[%clk
0:01:44.9]} 32. b3 {[%clk 0:01:58.5]} 32... Bb2 {[%clk 0:01:44.8]} 33. a4 {[%clk
0:01:58.2]} 33... bxa4 {[%clk 0:01:44.4]} 34. bxa4 {[%clk 0:01:59.1]} 1-0